Cogmind - Beta 11 @@@ ROGUE MODE // 2022.03.30 @ 18:22:53 Player: Heclapar Result: Destroyed by G-47 Trooper with Particle Gun Performance ------------- Evolutions (1) 500 Regions Visited (6) 1200 Robots Destroyed (51) 255 Value Destroyed (1158) 1158 Prototype IDs (24) 480 Alien Tech Used (0) 0 Bonus (300) 300 TOTAL SCORE: 3893 Bonus ------- Aligned with FarCom 300 Cogmind --------- Core Integrity 0/400 Matter 280/300 Energy 10/100 System Corruption 6% Temperature Cool (9) Movement Walking (330) Ox3 Location -8/Mines Parts ------- > --- POWER (1) -------- (None) > --- PROPULSION (2) --- Carbon-fiber Leg Compact Wheel > --- UTILITY (4) ------ High-capacity Storage Unit Shield Generator > --- WEAPON (2) ------- Heavy Hammer Heavy Mace > --- INVENTORY (20) --- Seismic Detector Modified TNC Beam Rifle Beam Rifle Particle Gun Particle Gun Heavy Assault Rifle Autogun Gauss Rifle Datajack Heavy Mace Heavy Mace Peak State ------------ > --- POWER ------------ Light Nuclear Core > --- PROPULSION ------- Compact Wheel Compact Wheel > --- UTILITY ---------- Improved Heat Sink Large Storage Unit Targeting Computer Targeting Computer > --- WEAPON ----------- Particle Gun Heavy Assault Rifle > --- INVENTORY -------- Light Nuclear Core Carbon-fiber Leg Modified TNC Shield Generator Beam Rifle Beam Rifle Particle Gun Autogun Gauss Rifle Datajack Heavy Hammer Heavy Hammer Heavy Mace Heavy Mace Heavy Mace [Rating: 19] Favorites ----------- Power Light Nuclear Core Engine Ion Engine Power Core Light Nuclear Core Propulsion Compact Wheel Leg Aluminum Leg Wheel Compact Wheel Utility Targeting Computer Device Improved Heat Sink Storage Large Storage Unit Processor Targeting Computer Weapon Particle Gun Energy Gun Particle Gun Energy Cannon Beam Cannon Ballistic Gun Heavy Assault Rifle Impact Weapon Heavy Hammer Build | -11 -10 -10 -9 -9 -9 -8 ------- Run | Scr Mat Min Mat Min Exi Min Slots Evolved 2 | . . . 2 . . . Power . | . . . . . . . Propulsion . | . . . . . . . Utility 2 | . . . 2 . . . Weapon . | . . . . . . . Parts Attached 42 | . 12 6 17 . 1 6 Power 9 | . 2 1 5 . . 1 Engine 5 | . 2 1 2 . . . Core 4 | . . . 3 . . 1 Reactor . | . . . . . . . Propulsion 10 | . 3 2 4 . . 1 Treads . | . . . . . . . Leg 5 | . . 2 2 . . 1 Wheel 5 | . 3 . 2 . . . Hover . | . . . . . . . Flight . | . . . . . . . Utility 10 | . 3 . 5 . 1 1 Device 3 | . . . 2 . . 1 Storage 5 | . 2 . 2 . 1 . Processor 2 | . 1 . 1 . . . Hackware . | . . . . . . . Protection . | . . . . . . . Artifact . | . . . . . . . Weapon 13 | . 4 3 3 . . 3 Energy Gun 5 | . 1 2 2 . . . Energy Cannon 1 | . 1 . . . . . Ballistic Gun 4 | . 2 1 1 . . . Ballistic Cannon . | . . . . . . . Launcher . | . . . . . . . Special Weapon . | . . . . . . . Impact Weapon 3 | . . . . . . 3 Slashing Weapon . | . . . . . . . Piercing Weapon . | . . . . . . . Special Melee Weapon . | . . . . . . . Unidentified Prototypes 1 | . . . 1 . . . Parts Lost 11 | . 2 2 1 . . 6 Power 3 | . . . 1 . . 2 Propulsion 3 | . 1 1 . . . 1 Utility 3 | . . . . . . 3 Weapon 2 | . 1 1 . . . . Highest Loss Streak 3 | . 1 2 1 . . 3 To Critical Strikes . | . . . . . . . Average Slot Usage (%) 96 | . 93 97 99 100 100 85 Engine 6 | . 14 14 9 . . . Core 4 | . . . 1 11 11 9 Leg 8 | . 7 7 19 . . . Wheel 14 | . 19 19 2 22 22 20 Device 8 | . . . 10 11 11 10 Storage 12 | . 22 14 11 11 11 11 Processor 16 | . 1 14 22 22 22 12 Energy Gun 12 | . 18 4 18 11 11 2 Ballistic Gun 6 | . 2 23 3 11 11 2 Impact Weapon 2 | . . . . . . 16 Naked Turns . | . . . . . . . Heaviest Build 53 | 14 18 16 35 32 52 53 Greatest Support 32 | 20 26 26 32 32 32 32 Greatest Overweight (x) 2 | . 1 . 2 . 1 2 Average Overweight (x) . | . . . . . . 1 Largest Inventory Capacity 20 | 8 8 8 15 15 20 20 Average Capacity 13 | 8 8 8 11 15 15 20 Most Carried 15 | 6 8 8 14 15 15 15 Average Carried 11 | 6 7 7 8 14 14 14 Final Capacity 20 | 8 8 8 15 15 20 20 Final Carried 15 | 6 8 8 13 15 15 12 Class Distribution -------------------- 56% | Scavenger-Mutant 43% | Mutant Dominant Class ---------------- Mutant | -10/Materials Mutant | -10/Mines Scavenger-Mutant | -9/Materials Scavenger-Mutant | -9/Mines Scavenger-Mutant | -9/Exiles Mutant | -8/Mines Resources | -11 -10 -10 -9 -9 -9 -8 ----------- Run | Scr Mat Min Mat Min Exi Min Matter Collected 674 | 200 75 115 180 50 . 54 Remotely . | . . . . . . . Salvage Created 2010 | . 293 152 916 161 . 488 Parts 93 | . 20 14 38 11 . 10 Haulers Intercepted 2 | . 1 . 1 . . . Recyclers Shooed . | . . . . . . . Parts Field Recycled . | . . . . . . . Retrieved Matter . | . . . . . . . Parts Self-Destructed . | . . . . . . . Prevented . | . . . . . . . Kills | -11 -10 -10 -9 -9 -9 -8 ------- Run | Scr Mat Min Mat Min Exi Min Combat Hostiles Destroyed 31 | . 6 5 12 . . 8 Melee 3 | . . . . . . 3 Guns 21 | . 4 5 12 . . . Cannons 2 | . 2 . . . . . Classes Destroyed 11 | . 5 1 1 . . 4 Worker 3 | . 2 . . . . 1 Builder 5 | . 1 . 2 2 . . Tunneler 2 | . . . . . . 2 Hauler 2 | . 1 . 1 . . . Recycler 8 | . . . 5 2 . 1 Swarmer 9 | . 3 3 3 . . . Grunt 13 | . 3 . 6 . . 4 Brawler 1 | . . . . . . 1 Duelist 1 | . . . . . . 1 Sentry 5 | . . 2 3 . . . Hunter 2 | . . . . . . 2 Best Kill Streak 6 | . 3 3 6 3 . 4 Combat Bots Only 4 | . 3 3 4 . . 3 Max Kills in Single Turn 2 | . 2 2 1 1 . 2 Gunslinging 1 | . . 1 . . . . Exploded . | . . . . . . . Melee 1 | . . . . . . 1 Uniques/NPCs Destroyed . | . . . . . . . Combat | -11 -10 -10 -9 -9 -9 -8 -------- Run | Scr Mat Min Mat Min Exi Min Damage Taken 1929 | . 295 383 521 4 . 726 Core 532 | . 53 68 82 . . 329 Absorbed by Shields 105 | . . . . . . 105 Core Remaining (%) 75 | 100 . 51 . . . . Volleys Fired 114 | . 26 15 60 10 . 3 Largest 2 | . 2 2 2 2 . 2 Hottest 121 | . 110 85 121 88 . 88 Shots Fired 217 | . 52 29 111 19 . 6 Gun 199 | . 34 29 111 19 . 6 Cannon 18 | . 18 . . . . . Launcher . | . . . . . . . Special . | . . . . . . . Kinetic 56 | . . 25 18 10 . 3 Thermal 150 | . 41 4 93 9 . 3 Explosive . | . . . . . . . Electromagnetic 11 | . 11 . . . . . Robot Hit Streak 11 | . 8 8 11 9 . 8 Robot Miss Streak 4 | . 4 4 4 1 . . Penetration Max . | . . . . . . . Secondary Targets 3 | . . 2 1 . . . Max Gunslinging Chain 1 | . . 1 1 . . . Shots Hit Robots 183 | . 32 20 78 16 . 37 Core Hits 69 | . 15 9 35 5 . 5 Critical Kills 1 | . . . . . . 1 Critical Parts Destroyed 5 | . . . . . . 5 Critical Strikes 15 | . 1 . 7 . . 7 Burn 8 | . 1 . 7 . . . Smash 7 | . . . . . . 7 Melee Attacks 35 | . . . . . . 35 Impact 35 | . . . . . . 35 Slashing . | . . . . . . . Piercing . | . . . . . . . Sneak Attacks 6 | . . . . . . 6 Combat Hostiles . | . . . . . . . Follow-up Attacks 6 | . . . . . . 6 Damage Inflicted 3495 | . 479 187 1151 257 . 1421 Guns 1991 | . 304 187 1151 257 . 92 Cannons 175 | . 175 . . . . . Explosions . | . . . . . . . Melee 1329 | . . . . . . 1329 Ramming . | . . . . . . . Kinetic 442 | . . 152 119 123 . 48 Thermal 1620 | . 375 35 1032 134 . 44 Explosive . | . . . . . . . Electromagnetic 104 | . 104 . . . . . Impact 1329 | . . . . . . 1329 Slashing . | . . . . . . . Piercing . | . . . . . . . Highest Corruption 6 | . . . . . . 6 Average Corruption 6 | . . . . . . 6 Corruption Purged . | . . . . . . . Corruption Blocked . | . . . . . . . Effects 1 | . . . . . . 1 Parts Rejected 1 | . . . . . . 1 Overload Shots . | . . . . . . . Overflow Damage 330 | . . . . . . 330 Projectiles 3 | . . . . . . 3 Explosions . | . . . . . . . Melee 327 | . . . . . . 327 Knockbacks 4 | . . . . . . 4 Impact 4 | . . . . . . 4 Kinetic . | . . . . . . . Secondary . | . . . . . . . Self-Inflicted Damage 27 | . 27 . . . . . Shots 1 | . 1 . . . . . Rammed . | . . . . . . . Targets Rammed . | . . . . . . . Kicked . | . . . . . . . Crushed . | . . . . . . . Highest Temperature 284 | . 284 124 261 . . 40 Average Temperature 77 | . 111 48 58 . . 23 Received Heat Transfer 671 | . 99 117 204 . . 251 Effects 3 | . 2 . 1 . . . Energy Bleed 1 | . . . 1 . . . Interference 2 | . 2 . . . . . Siege Activations . | . . . . . . . Robots Corrupted . | . . . . . . . Combat Hostiles . | . . . . . . . Parts Fried 8 | . . . . . . 8 Impact Corruptions 13 | . . . . . . 13 Robots Melted . | . . . . . . . Combat Hostiles . | . . . . . . . Parts Melted 8 | . 2 . 6 . . . Heat Transferred 4588 | . 1036 74 3071 296 . 111 Parts Sabotaged . | . . . . . . . Parts Stolen . | . . . . . . . Parts Stripped . | . . . . . . . Power Chain Reactions . | . . . . . . . Missiles Intercepted . | . . . . . . . Alert | -11 -10 -10 -9 -9 -9 -8 ------- Run | Scr Mat Min Mat Min Exi Min Peak Influence 397 | . 350 244 397 86 . 235 Initial 136 | . . 136 94 66 . . Average 167 | . 132 183 236 78 . 100 Maximum Alert Level 1 | . 1 1 1 . . 1 Low Security (%) 59 | 100 71 49 27 100 . 96 Level 1 40 | . 28 50 72 . . 3 Level 2 . | . . . . . . . Level 3 . | . . . . . . . Level 4 . | . . . . . . . Level 5 . | . . . . . . . High Security . | . . . . . . . Max Security . | . . . . . . . Squads Dispatched 1 | . . . 1 . . . Investigation . | . . . . . . . Extermination . | . . . . . . . Reinforcement 1 | . . . 1 . . . Assault . | . . . . . . . Garrison . | . . . . . . . Intercept . | . . . . . . . Searches Triggered . | . . . . . . . Construction Impeded . | . . . . . . . Haulers Reinforced . | . . . . . . . Active Scanning Responses . | . . . . . . . Cargo Convoy Interrupts . | . . . . . . . Stealth | -11 -10 -10 -9 -9 -9 -8 --------- Run | Scr Mat Min Mat Min Exi Min Distress Signals 8 | . 3 . 5 . . . Communications Jammed . | . . . . . . . Distress Signals . | . . . . . . . Times Spotted 54 | . 13 5 24 . . 12 Peak Tracking Total 6 | . 6 3 6 . . 6 Tactical Retreats 4 | . 2 . 1 . . 1 Traps | -11 -10 -10 -9 -9 -9 -8 ------- Run | Scr Mat Min Mat Min Exi Min Traps Triggered . | . . . . . . . Indirectly . | . . . . . . . Trap Hack Attempts . | . . . . . . . Triggered . | . . . . . . . Disarmed . | . . . . . . . Reprogrammed . | . . . . . . . Reused . | . . . . . . . Traps Extracted . | . . . . . . . Installed . | . . . . . . . Triggered . | . . . . . . . Machines | -11 -10 -10 -9 -9 -9 -8 ---------- Run | Scr Mat Min Mat Min Exi Min Machines Disabled 2 | . 2 . . . . . Max in Single Turn 1 | . 1 . . . . . Machines Sabotaged . | . . . . . . . Garrisons Compromised . | . . . . . . . Overloaded Fab Kills . | . . . . . . . Hacking | -11 -10 -10 -9 -9 -9 -8 --------- Run | Scr Mat Min Mat Min Exi Min Machines Accessed 7 | . 2 . 2 1 2 . Terminals 4 | . 2 . 2 . . . Fabricators . | . . . . . . . Repair Stations . | . . . . . . . Recycling Units . | . . . . . . . Scanalyzers . | . . . . . . . Garrison Access . | . . . . . . . Total Hacks 18 | . 3 . 3 1 11 . Successful 16 | . 2 . 2 1 11 . Failed 2 | . 1 . 1 . . . Catastrophic 1 | . 1 . . . . . Database Lockouts . | . . . . . . . Manual 2 | . 1 . . . 1 . Terminals 6 | . 3 . 3 . . . Fabricators . | . . . . . . . Repair Stations . | . . . . . . . Recycling Units . | . . . . . . . Scanalyzers . | . . . . . . . Garrison Access . | . . . . . . . Terminal Hacks 16 | . 2 . 2 1 11 . Record 11 | . 1 . . . 10 . Open Door 1 | . . . . 1 . . Branch Access Points 1 | . . . 1 . . . Alert Level 1 | . . . 1 . . . Zone Layout 1 | . 1 . . . . . EX-Prototype ID Bank 1 | . . . . . 1 . Fabricator Hacks . | . . . . . . . Repair Station Hacks . | . . . . . . . Recycling Unit Hacks . | . . . . . . . Scanalyzer . | . . . . . . . Garrison Access Hacks . | . . . . . . . Unauthorized Hacks . | . . . . . . . Terminals . | . . . . . . . Fabricators . | . . . . . . . Repair Stations . | . . . . . . . Recycling Units . | . . . . . . . Scanalyzers . | . . . . . . . Garrison Access . | . . . . . . . Data Cores Recovered . | . . . . . . . Used . | . . . . . . . Hacking Detections 2 | . 1 . 1 . . . Full Trace Events . | . . . . . . . Feedback Events . | . . . . . . . Feedback Blocked . | . . . . . . . Robot Schematics Acquired . | . . . . . . . Robots Built . | . . . . . . . Authchips . | . . . . . . . Time . | . . . . . . . Total Robot Build Rating . | . . . . . . . Part Schematics Acquired . | . . . . . . . Parts Built . | . . . . . . . Authchips . | . . . . . . . Time . | . . . . . . . Total Part Build Rating . | . . . . . . . Parts Repaired . | . . . . . . . Time . | . . . . . . . Parts Recycled . | . . . . . . . Recycled Matter . | . . . . . . . Retrieved Matter . | . . . . . . . Retrieved Components . | . . . . . . . Parts Scanalyzed . | . . . . . . . Part Schematics Acquired . | . . . . . . . Parts Damaged . | . . . . . . . Bothacking | -11 -10 -10 -9 -9 -9 -8 ------------ Run | Scr Mat Min Mat Min Exi Min Used RIF Installer . | . . . . . . . Robots Hacked . | . . . . . . . Non-combat . | . . . . . . . Combat . | . . . . . . . Robot Hacks Applied . | . . . . . . . Relay Couplers Released . | . . . . . . . Fabnet Peak Effective % . | . . . . . . . Robots Rewired 1 | . 1 . . . . . Allies Hacked . | . . . . . . . Hacks Repelled . | . . . . . . . Allies | -11 -10 -10 -9 -9 -9 -8 -------- Run | Scr Mat Min Mat Min Exi Min Total Allies 1 | . 1 . . . . . Largest Group 1 | . 1 . . . . . Highest-Rated Group 8 | . 8 . . . . . Highest-Rated Ally 8 | . 8 . . . . . Total Orders 1 | . 1 . . . . . DROP 1 | . 1 . . . . . Ally Attacks . | . . . . . . . Total Damage . | . . . . . . . Kills . | . . . . . . . Allies Corrupted . | . . . . . . . Allies Melted . | . . . . . . . Intel | -11 -10 -10 -9 -9 -9 -8 ------- Run | Scr Mat Min Mat Min Exi Min Robot Analysis Total . | . . . . . . . Derelict Logs Recovered 2 | . . 2 . . . . Drone Launches . | . . . . . . . Drone Recoveries . | . . . . . . . Exploration | -11 -10 -10 -9 -9 -9 -8 ------------- Run | Scr Mat Min Mat Min Exi Min Turns Passed 2495 | 2 379 201 829 235 445 404 Spaces Moved 1645 | 2 249 143 389 205 439 218 Core . | . . . . . . . Treads . | . . . . . . . Legs 419 | 2 74 34 309 . . . Wheels 1226 | . 175 109 80 205 439 218 Hover . | . . . . . . . Flight . | . . . . . . . Fastest Speed 80 | 120 80 90 100 100 100 115 Average Speed 111 | 120 94 97 143 100 100 115 Slowest Speed 190 | 120 120 120 190 100 115 130 Overloaded Moves . | . . . . . . . Propulsion Burnouts . | . . . . . . . Robots Hopped . | . . . . . . . Cave-ins Triggered . | . . . . . . . Exploration Rate (%) 37 | 2 44 33 30 35 84 34 Regions Visited 6 Branch Regions 4 Pre-discovered Areas 1 | . . 1 . . . . Known Exits Taken 1 | . . . 1 . . . Unknown Exits Taken 5 | 1 1 1 . 1 1 . Scrap Searched 1 | . . . . . . 1 Spaces Dug . | . . . . . . . Terrain Destroyed 18 | . 18 . . . . . Melee . | . . . . . . . Projectile . | . . . . . . . AOE 18 | . 18 . . . . . Terrain Rammed . | . . . . . . . Walls Destroyed . | . . . . . . . Machines Disabled . | . . . . . . . Actions | -11 -10 -10 -9 -9 -9 -8 --------- Run | Scr Mat Min Mat Min Exi Min Total 2050 | 1 341 182 557 216 442 311 Wait 156 | . 36 12 54 . . 54 Move 1639 | 1 248 142 388 204 438 218 Hop . | . . . . . . . Pick Up 37 | . 9 3 21 2 1 1 Fast Attach 1 | . 1 . . . . . Attach 15 | . 2 2 7 . . 4 Detach . | . . . . . . . Swap 26 | . 9 4 10 . 1 2 Drop 30 | . 7 4 17 . 2 . Fire 114 | . 26 15 60 10 . 3 Melee 29 | . . . . . . 29 Ram . | . . . . . . . Kick . | . . . . . . . Crush . | . . . . . . . Escape Stasis . | . . . . . . . Rewire 3 | . 3 . . . . . Trap . | . . . . . . . Miscellaneous . | . . . . . . . Route ------- -11/Scrapyard -10/Materials -10/Mines (discovered 2 exits: *Mat x2) -9/Materials -9/Mines (discovered 2 exits: [*Mat] / *Exi) -9/Exiles -8/Mines History --------- Turn | Location | Event 1 | -11/Scrapyard | Discovered new exit (range 1) 3 | -11/Scrapyard | Entered Materials 108 | -10/Materials | Discovered new exit (range 6) 322 | -10/Materials | Build established: Mutant 382 | -10/Materials | Entered Mines 396 | -10/Mines | Learned Materials trap positions 430 | -10/Mines | Discovered new exit (range 10) 433 | -10/Mines | Learned location of Storage (-7) 463 | -10/Mines | Discovered new exit (range 7) 583 | -10/Mines | Entered Materials 583 | -9/Materials | Evolved 2 slots: Utility x2 584 | -9/Materials | Loaded intel: 31 trap records 1106 | -9/Materials | Build established: Scavenger-Mutant 1145 | -9/Materials | Identified exit to Mines 1412 | -9/Materials | Entered Mines 1425 | -9/Mines | Discovered new exit (range 16) 1440 | -9/Mines | Met a Derelict who couldn't figure out how to use a Trap Extractor 1503 | -9/Mines | Found a hidden stash of uninstalled traps 1641 | -9/Mines | Deemed a non-threat by the Exiles lab entrance 1641 | -9/Mines | Discovered new exit (range 5) 1647 | -9/Mines | Entered Exiles 1672 | -9/Exiles | Met 8R-AWN 1689 | -9/Exiles | Met EX-HEX 1719 | -9/Exiles | Met EX-BIN 1782 | -9/Exiles | Met EX-DEC 1813 | -9/Exiles | Aligned with FarCom system 1814 | -9/Exiles | Given EX-Vault access code 1842 | -9/Exiles | Opened EX-Vault 1849 | -9/Exiles | Found Modified TNC 1877 | -9/Exiles | Warned to stay clear of 0b10 Research branches 1963 | -9/Exiles | Visited The Gauntlet 2082 | -9/Exiles | Discovered new exit (range 10) 2092 | -9/Exiles | Left Exiles lab with Modified TNC 2092 | -9/Exiles | Entered Mines 2447 | -8/Mines | Core integrity fell below 50% 2474 | -8/Mines | Core integrity fell below 20% 2485 | -8/Mines | Lost 3 parts (1p1n1u) 2496 | -8/Mines | Destroyed by G-47 Trooper with Particle Gun Last Messages --------------- 02429_ Critical hit (Burn: +27). 02442_ Hvy. Hammer follow-up attack on B-36 Bruiser. 02442_ Knocked back. 02445_ Hvy. Hammer follow-up attack on B-36 Bruiser. 02449_ Targeting Computer destroyed. 02449_ Lgt. Nuclear Core destroyed. 02449_ System corrupted by crushing effect (+4). 02449_ System corrupted by crushing effect (+2). 02451_ Hvy. Hammer follow-up attack on B-36 Bruiser. 02454_ Com. Wheel destroyed. 02456_ B-36 Bruiser suffers critical hit (Smash). 02456_ Hvy. Hammer follow-up attack on B-36 Bruiser. 02456_ B-36 Bruiser destroyed. 02476_ G-50 Soldier suffers critical hit (Smash). 02476_ Destroyed Adv. Heat Sink. 02476_ G-50 Soldier system corrupted by crushing effect. 02477_ System corrupted: Hvy. Hammer rejected. 02477_ G-50 Soldier system terminally corrupted. 02482_ G-47 Trooper suffers critical hit (Smash). 02482_ G-47 Trooper destroyed. Map ----- +----------------------------------------------------+ | ????????# #####?????????## ##??? | | ???????# ## #?????????# ##???? | | ??????# ### ### ########### ##????? | | ?????# ??# #?# ##?????? | | ?????# #??# #?############ #??????? | | ????# #?### #????????????# #??????? | | ????# #?## #????????????## ##??????? | | ????## #??# #?????????????# ###???????? | | ?????####???# #?????????????# #?????????? | | ???????????## #?????????????# ?????????? | | ??????????## #????????????? #?????????? | | ?????????## #????????????? #?????????? | | ????????## ##??????????? #?????????? | | ??????### ##?????????? ] ??????????? | | ??????# #????????? ! #??????????? | | ?????# #?????????## ???????????? | | ?????# ## #??????????# ???????????? | | ?????## #### ##?????????# ???????????? | | ??????## ##???# % ########## ????????? | | ???????## ?????# ????????? | | ????????# ????## g $ ????????? | | ????????#?????# ####### ????????? | | ??????????????## ## #?????????? ???????????? | | ???????????????#### #?#####????????????????? | | ??????????????????#!#?# ?????????????????? | | ??????????????????#@###%#??????????????????? | | ??????????????????#=g% #??????????????????? | | ??????????????????##### #??????????????????? | | ??????????????????????#%#??????????????????? | | ??????????????????????# #??????????????????? | | ???????????????##?????# #??????????????????? | | ???????????????# ???# #??????????????????? | | ???????????????# ## #?????? # ???? | | ???????????????# g### ???? | | ???????????????## #???????? | | ????????????????##### #???????? | | ????????????????????## #???????? | | ?????????????????????## ## #???????? | | ??????????????????????#### ##???????????? | | ??????????????????????????#####????????????? | | ???????????????????????????????????????????? | | ???????????????????????????????????????????? | | ???????????????????????????????????????????? | | ???????????????????????????????????????????? | | ???????????????????????????????????????????? | | ???????????????????????????????????????????? | | ???????????????????????????????????????????? | | ???????????????????????????????????????????? | | ???????????????????????????????????????????? | | ???????????????????????????????????????????? | +----------------------------------------------------+ Best States ------------- Heat Dissipation 42 Energy Generation 14 Energy Capacity 450 Matter Stores 300 Matter Capacity 300 Sight Range 16 Robot Scan Range 14 Terrain Scan Density 10 Evasion (%) 55 Targeting Accuracy 10 Item Schematics ----------------- None Robot Schematics ------------------ None Fabricated ------------ Nothing Alien Tech Used ----------------- None Achievements -------------- None Challenges ------------ None Game ------ Seed PotentialLobotomyMinigun Manual? 0 Play Time 00:27:57 Cumulative 18.1 hours Start 2022.03.28 @ 16:08:06 End 2022.03.30 @ 18:22:53 Sessions 3 Manual Loads 0 Difficulty Rogue Special Mode None Game No. 22 Rogue 22 Adventurer 0 Explorer 0 Win Type - Total 0 Types 0/0/0/0/0/0/0/0/0 Lore% 25 Gallery% 28 Achievement% 25 Wizard Run 0 Options --------- ASCII 0 Keyboard 0 Movement Mouse Keybinds 0 Fullscreen 2 Font 18/Terminus Map View 76x50 Tactical HUD 1 Map Filters NONE Filters NONE Steam 1 RUN: ab7627e8-0e1c-42ac-ae78-976f77e53b60